bitfinex/quotes_SOLUSD_20241028
["timestamp","ask_amount","ask_price","bid_price","bid_amount"]
[1730099113426,14.16070587,174.77,174.73,14.3073]
[1730099113617,14.16070587,174.78,174.73,14.3073]
[1730099114326,14.16070587,174.78,174.72,14.16070587]
[1730099115033,19.88180587,174.79,174.73,14.16070587]
[1730099115232,19.88180587,174.79,174.74,5.7227]
[1730099115815,19.88180587,174.79,174.74,20.0296]
[1730099116313,19.88180587,174.79,174.74,34.19030587]
[1730099118147,14.16070587,174.79,174.74,34.19030587]
[1730099119038,14.16070587,174.79,174.74,20.0296]
[1730099120326,14.16070587,174.78,174.74,20.0296]
[1730099124634,14.16070587,174.76,174.74,20.0296]
[1730099125121,14.16070587,174.77,174.74,20.0296]
[1730099125719,5.84629,174.8,174.74,14.3069]
[1730099125720,14.16070587,174.76,174.74,14.3069]
[1730099125915,14.16070587,174.76,174.72,5.7233]
[1730099126228,14.16070587,174.75,174.72,5.7233]
[1730099126546,14.16070587,174.74,174.71,20.0328]
[1730099127937,14.16070587,174.74,174.71,14.3091]
[1730099128445,14.16070587,174.73,174.7,5.724]
[1730099129645,14.16070587,174.73,174.69,20.0354]
[1730099130346,14.16070587,174.72,174.67,14.16070587]
[1730099130517,14.16070587,174.7,174.66,21.5525]
[1730099130720,14.16070587,174.71,174.66,21.5525]
[1730099131740,14.16070587,174.71,174.66,50.02670587]
[1730099131946,49.750264,174.75,174.66,50.02670587]
[1730099132246,14.16070587,174.72,174.66,50.02670587]
[1730099132445,9.07380852,174.72,174.66,44.93980852]
[1730099132635,9.07380852,174.72,174.67,9.07380852]
[1730099132820,23.902374,174.73,174.68,9.07380852]
[1730099134526,23.902374,174.73,174.67,20.0377]
[1730099134726,38.07720558,174.73,174.68,14.17483158]
[1730099135251,38.07720558,174.73,174.67,34.21253158]
[1730099135849,38.07720558,174.73,174.68,14.17483158]
[1730099136052,14.17483158,174.71,174.67,20.0377]
[1730099136546,14.17483158,174.72,174.67,34.21253158]
[1730099136845,14.30032158,174.73,174.68,14.17483158]
[1730099137551,14.30032158,174.73,174.67,34.21253158]
[1730099137852,14.17483158,174.72,174.67,34.21253158]
[1730099138549,14.17483158,174.72,174.66,30.00203158]
[1730099139550,14.17483158,174.71,174.66,30.00203158]
[1730099139860,5.7236,174.72,174.62,25.98947169]
[1730099139861,14.17483158,174.68,174.63,14.17483158]
[1730099140144,14.17483158,174.69,174.64,14.17483158]
[1730099140345,14.17483158,174.71,174.65,14.17483158]
[1730099140656,14.17483158,174.71,174.66,20.0389]
[1730099143449,14.17483158,174.7,174.66,20.0389]
[1730099145360,14.17483158,174.7,174.66,14.3135]
[1730099146637,14.17483158,174.69,174.66,14.3135]
[1730099146841,14.17483158,174.7,174.66,14.3135]
[1730099147254,38.07720558,174.71,174.66,14.3135]
[1730099147554,20.02402158,174.71,174.66,20.0389]
[1730099148640,14.17483158,174.7,174.66,20.0389]
[1730099149733,14.17483158,174.7,174.64,14.17483158]
[1730099150154,19.89903158,174.7,174.64,14.17483158]
[1730099150352,14.17483158,174.69,174.64,14.17483158]
[1730099151150,14.17483158,174.69,174.64,20.0411]
[1730099152262,0.12549,174.7,174.67,14.17483158]
[1730099152449,23.776884,174.71,174.67,14.17483158]
[1730099154060,29.500684,174.71,174.67,19.89983158]
[1730099154373,43.67551558,174.71,174.66,34.21343158]
[1730099156558,38.57501225,174.71,174.66,9.07432825]
[1730099156958,38.57501225,174.71,174.65,9.07432825]
[1730099158571,0.12549,174.72,174.62,21.57846397]
[1730099158572,23.902374,174.72,174.67,9.07432825]
[1730099158753,5.7238,174.71,174.67,9.07432825]
[1730099159647,5.7238,174.71,174.67,14.79932825]
[1730099161173,5.7238,174.71,174.66,9.07432825]
[1730099161174,14.79812825,174.71,174.66,9.07432825]
[1730099161361,9.07432825,174.7,174.65,9.07432825]
[1730099161553,9.07432825,174.7,174.62,21.57846397]
[1730099161760,9.07432825,174.7,174.65,9.07432825]
[1730099162077,9.07432825,174.7,174.66,5.7254]
[1730099165783,9.07432825,174.7,174.66,20.0389]
[1730099167256,14.79812825,174.71,174.66,20.0389]
[1730099167456,9.07432825,174.7,174.66,20.0389]
[1730099168475,9.07432825,174.68,174.63,20.0418]
[1730099168660,9.07432825,174.68,174.63,29.11612825]
[1730099168980,32.97670225,174.69,174.63,29.11612825]
[1730099169773,38.70110225,174.69,174.63,29.11612825]
[1730099169977,9.07432825,174.68,174.63,29.11612825]
[1730099170164,9.07432825,174.67,174.63,20.0418]
[1730099170779,9.07432825,174.67,174.63,14.3155]
[1730099171076,9.07432825,174.67,173.79,7.16454733]
[1730099171077,9.07432825,174.65,174.6,23.39242825]
[1730099172071,9.07432825,174.64,174.6,14.3181]
[1730099172980,23.776884,174.64,174.6,23.39242825]
[1730099173363,9.07432825,174.66,174.61,9.07432825]
[1730099173589,0.12549,174.66,174.63,9.07432825]
[1730099174084,0.12549,174.66,174.62,9.07432825]
[1730099174681,0.12549,174.66,174.61,9.07432825]
[1730099175454,0.12549,174.66,174.62,9.07432825]
[1730099175860,23.776884,174.65,174.61,9.07432825]
[1730099177366,23.776884,174.65,174.62,5.7267]
[1730099178692,23.776884,174.65,174.61,9.07432825]
[1730099179088,9.07432825,174.64,174.6,14.3181]
[1730099179382,23.776884,174.63,174.6,14.3181]
[1730099180074,23.902374,174.6,174.57,14.3208]
[1730099180274,23.902374,174.6,174.57,23.39512825]
[1730099180481,0.12549,174.6,174.57,23.39512825]
[1730099180985,0.12549,174.6,174.57,29.12342825]
[1730099183083,0.12549,174.6,174.57,14.3208]
[1730099186792,0.12549,174.6,174.57,20.0491]
[1730099186970,0.12549,174.6,174.57,29.12342825]
[1730099189464,0.12549,174.6,174.58,9.07432825]
[1730099189791,0.12549,174.6,174.57,29.12342825]
[1730099190690,0.12549,174.6,174.57,20.0491]
[1730099190884,23.776884,174.59,174.57,20.0491]
[1730099191297,9.19981825,174.58,174.54,14.3231]
[1730099191591,23.776884,174.57,174.54,29.12672825]
[1730099191970,23.902374,174.58,174.54,29.12672825]
[1730099192167,23.776884,174.59,174.55,9.07432825]
[1730099192388,23.776884,174.59,174.58,9.07432825]
[1730099192905,23.776884,174.6,174.57,9.07432825]
[1730099194791,0.12549,174.6,174.58,9.07432825]
[1730099195194,0.12549,174.6,174.57,29.12342825]
[1730099196090,0.12549,174.6,174.58,9.07432825]
[1730099196485,20.0,174.64,174.59,9.07432825]
[1730099196797,5.7254,174.66,174.61,9.07432825]
[1730099196971,5.7254,174.66,174.63,9.07432825]
[1730099197494,5.7254,174.66,174.62,9.07432825]
[1730099197795,5.7254,174.66,174.61,9.07432825]
[1730099198105,44.027864,174.65,174.61,9.07432825]
[1730099198692,49.753764,174.65,174.61,9.07432825]
[1730099199902,24.027864,174.62,174.57,29.12342825]
[1730099200191,33.10219225,174.62,174.57,29.12342825]
[1730099201193,38.82909225,174.62,174.57,29.12342825]
[1730099204270,38.82909225,174.62,174.57,14.3209]
[1730099204998,9.07432825,174.61,174.57,14.3209]
[1730099205189,23.776884,174.6,174.57,14.3209]
[1730099205892,23.776884,174.6,174.57,20.0492]
[1730099206495,0.12549,174.59,174.51,16.5201]
[1730099206702,0.12549,174.59,174.55,9.07432825]
[1730099206883,0.12549,174.59,174.56,9.07432825]
[1730099207077,29.504284,174.6,174.58,9.07432825]
[1730099207078,23.776884,174.6,174.58,9.07432825]
[1730099207398,23.776884,174.61,174.58,9.07432825]
[1730099207986,23.776884,174.61,174.57,14.80242825]
[1730099210996,23.776884,174.61,174.57,5.7281]
[1730099211297,70.0,174.68,174.57,5.7281]
[1730099211298,22.2688,174.69,174.6,45.37164125]
[1730099211506,9.07432825,174.7,174.65,9.07432825]
[1730099212107,14.79842825,174.7,174.65,9.07432825]
[1730099212483,14.79842825,174.7,174.64,5.7257]
[1730099212484,20.0,174.72,174.69,9.07432825]
[1730099212780,14.79672825,174.75,174.69,9.07432825]
[1730099212996,9.07432825,174.74,174.69,9.07432825]
[1730099213581,5.7231,174.73,174.69,9.07432825]
[1730099213776,0.12549,174.72,174.7,9.07432825]
[1730099213983,23.776884,174.72,174.7,9.07432825]
[1730099220620,23.776884,174.72,174.67,14.3123]
[1730099220785,23.776884,174.72,174.69,9.07432825]
[1730099221999,5.7226,174.75,174.71,9.07432825]
[1730099222201,5.7226,174.75,174.73,9.07432825]
[1730099222401,25.7214,174.78,174.74,9.07432825]
[1730099222808,34.79572825,174.78,174.73,9.07432825]
[1730099222999,25.7214,174.78,174.73,9.07432825]
[1730099223512,25.7214,174.78,174.69,36.297313]
[1730099223513,20.0,174.78,174.76,9.07432825]
[1730099223713,5.7212,174.79,174.76,9.07432825]
[1730099223903,5.7204,174.81,174.76,9.07432825]
[1730099224386,9.07432825,174.8,174.75,9.07432825]
[1730099224789,0.12549,174.78,174.74,9.07432825]
[1730099225005,0.12549,174.78,174.73,29.10512825]
[1730099225500,0.12549,174.78,174.74,9.07432825]
[1730099226513,0.12549,174.78,174.75,75.21900206]
[1730099226721,0.12549,174.78,174.74,9.07432825]
[1730099227312,0.12549,174.78,174.73,29.10512825]
[1730099227504,5.84689,174.78,174.73,29.10512825]
[1730099227713,5.84689,174.78,174.74,9.07432825]
[1730099227714,23.776884,174.77,174.74,9.07432825]
[1730099227910,23.776884,174.75,174.68,15.9786]
[1730099228206,23.776884,174.75,174.7,23.38412825]
[1730099228597,23.776884,174.75,174.7,29.10812825]
[1730099229194,9.19981825,174.72,174.68,15.9786]
[1730099229397,9.07432825,174.69,174.64,14.80002825]
[1730099229606,9.07432825,174.7,174.64,29.11492825]
[1730099229814,9.07432825,174.7,174.65,9.07432825]
[1730099230924,9.07432825,174.7,174.66,5.7254]
[1730099232098,14.79852825,174.7,174.66,5.7254]
[1730099233116,9.07432825,174.7,174.66,5.7254]
[1730099234328,23.776884,174.7,174.66,9.07432825]
[1730099235404,23.776884,174.7,174.66,14.79952825]
[1730099237309,9.19981825,174.72,174.67,9.07432825]
[1730099237641,5.7214,174.78,174.71,9.07432825]
[1730099237809,9.07432825,174.77,174.72,9.07432825]
[1730099238333,14.79572825,174.78,174.73,9.07432825]
[1730099238622,9.07432825,174.77,174.72,9.07432825]
[1730099239029,23.776884,174.76,174.72,9.07432825]
[1730099239204,23.776884,174.76,174.72,14.79752825]
[1730099239806,0.12549,174.78,174.73,9.07432825]
[1730099240709,0.12549,174.78,174.74,9.07432825]
[1730099241028,0.12549,174.78,174.75,9.07432825]
[1730099241204,20.0,174.8,174.76,9.07432825]
[1730099241409,20.0,174.8,174.74,20.0294]
[1730099241410,20.0,174.8,174.77,9.07432825]
[1730099241628,14.79422825,174.83,174.78,9.07432825]
[1730099241927,9.07432825,174.85,174.8,9.07432825]
[1730099243023,9.07432825,174.86,174.8,9.07432825]
[1730099243218,23.902374,174.84,174.81,9.07432825]
[1730099243417,15.5478,174.88,174.83,9.07432825]
[1730099243620,9.07432825,174.89,174.83,9.07432825]
[1730099244229,12.1472,174.91,174.85,9.07432825]
[1730099244403,12.1472,174.91,174.78,14.3034]
[1730099244609,14.14947585,174.9,174.84,14.14947585]
[1730099245611,23.902374,174.89,174.85,5.7191]
[1730099247629,38.05184985,174.89,174.83,14.14947585]
[1730099248817,14.14947585,174.85,174.77,5.7218]
[1730099249128,14.14947585,174.84,174.79,14.14947585]
[1730099249332,23.776884,174.84,174.79,14.14947585]
[1730099250025,23.776884,174.84,174.8,19.87027585]
[1730099250329,20.0,174.9,174.83,14.14947585]
[1730099250527,0.12549,174.88,174.84,14.14947585]
[1730099250708,14.27496585,174.88,174.83,14.14947585]
[1730099251433,14.27496585,174.88,174.83,19.86907585]
[1730099251734,23.776884,174.87,174.83,19.86907585]
[1730099255331,34.14947585,174.92,174.86,14.14947585]
[1730099255648,34.14947585,174.92,174.87,14.14947585]
[1730099256335,5.717,174.92,174.88,14.14947585]
[1730099256514,23.902374,174.91,174.88,14.14947585]
[1730099256708,23.776884,174.91,174.88,14.14947585]
[1730099259029,23.776884,174.91,174.87,14.14947585]
[1730099259840,23.776884,174.91,174.88,14.14947585]
[1730099260332,20.12549,174.93,174.89,14.14947585]
[1730099260523,23.776884,174.92,174.89,14.14947585]
[1730099260724,23.776884,174.92,174.83,20.0194]
[1730099260725,14.14947585,174.95,174.9,14.14947585]
[1730099261638,5.7155,174.96,174.91,14.14947585]
[1730099261938,5.7155,174.96,174.84,15.0183]
[1730099261939,5.7155,174.96,174.92,14.14947585]
[1730099262128,14.14947585,174.98,174.93,14.14947585]
[1730099262335,5.7149,174.98,174.93,19.86597585]
[1730099262526,19.86437585,174.98,174.93,19.86597585]
[1730099263657,23.776884,174.97,174.93,5.7165]
[1730099264241,23.776884,174.97,174.93,19.86597585]
[1730099265818,23.776884,174.97,174.93,34.15737585]
[1730099266221,23.776884,174.97,174.94,14.14947585]
[1730099267431,23.776884,174.97,174.93,28.44087585]
[1730099268333,37.92635985,174.97,174.93,14.2914]
[1730099268523,37.92635985,174.97,174.93,20.0079]
[1730099269021,23.776884,174.97,174.93,34.15737585]
[1730099270526,23.776884,174.97,174.93,23.33801093]
[1730099271133,14.76151093,174.98,174.93,23.33801093]
[1730099271333,23.776884,174.97,174.93,23.33801093]
[1730099272231,23.776884,174.97,174.93,29.05451093]
[1730099272433,32.82349493,174.97,174.93,20.0079]
[1730099272753,9.17210093,174.96,174.91,15.791]
[1730099273041,32.82349493,174.97,174.92,9.04661093]
[1730099274441,9.04661093,174.96,174.93,5.7165]
[1730099275737,9.04661093,174.96,174.92,14.2918]
[1730099275927,9.04661093,174.96,174.92,20.0086]
[1730099276138,32.82349493,174.97,174.92,20.0086]
[1730099277051,9.04661093,174.98,174.93,9.04661093]
[1730099277546,9.04661093,174.97,174.92,9.04661093]
[1730099277750,9.04661093,174.97,174.87,36.2143]
[1730099277953,9.04661093,174.97,174.92,9.04661093]
[1730099278428,9.04661093,174.97,174.93,20.0079]
[1730099280557,9.04661093,174.98,174.93,29.05451093]
[1730099281546,9.04661093,174.98,174.92,9.04661093]
[1730099282751,9.04661093,174.97,174.92,9.04661093]
[1730099283062,9.04661093,174.96,174.93,20.0079]
[1730099283766,6.257,175.04,174.95,9.04661093]
[1730099283936,14.75921093,175.05,175.0,9.04661093]
[1730099285138,14.75921093,175.05,175.01,5.7139]
[1730099285935,29.04661093,175.05,175.01,5.7139]
[1730099286149,29.04661093,175.05,174.99,14.2857]
[1730099286343,9.04661093,175.02,174.99,20.0]
[1730099287261,9.04661093,175.0,174.95,23.33581093]
[1730099287450,9.04661093,175.0,174.96,1.43087242]
[1730099287755,9.04661093,174.99,174.95,14.2892]
[1730099288547,9.04661093,175.0,174.95,23.33581093]
[1730099288758,9.04661093,175.0,174.95,29.05171093]
[1730099289757,29.491484,174.99,174.95,20.0051]
[1730099289969,29.491484,174.99,174.95,29.05171093]
[1730099290352,29.491484,174.99,174.95,20.0051]
[1730099290570,29.491484,174.99,174.95,29.05171093]
[1730099290862,38.53809493,174.99,174.95,20.0051]
[1730099291271,5.714,175.01,174.95,29.05171093]
[1730099291447,23.776884,175.0,174.97,9.04661093]
[1730099291842,23.776884,175.0,174.96,9.04661093]
[1730099292145,14.76011093,175.03,174.97,9.04661093]
[1730099292478,14.76011093,175.03,174.98,9.04661093]
[1730099292770,9.04661093,175.01,174.95,29.05171093]
[1730099293159,9.04661093,175.01,174.96,9.04661093]
[1730099293763,14.76021093,175.02,174.96,9.04661093]
[1730099294068,9.04661093,175.01,174.96,9.04661093]
[1730099294867,9.04661093,175.01,174.97,5.7152]
[1730099296167,20.0,175.05,174.97,5.7152]
[1730099296460,9.04661093,175.02,174.97,20.0033]
[1730099296669,9.04661093,175.02,174.97,29.04991093]
[1730099297169,32.94898493,175.03,174.97,29.04991093]
[1730099297347,38.66228493,175.03,174.97,29.04991093]
[1730099297552,38.66228493,175.03,174.98,9.04661093]
[1730099298371,29.490184,175.03,174.99,9.04661093]
[1730099299070,29.490184,175.03,174.99,14.76111093]
[1730099299372,9.04661093,175.02,174.99,5.7145]
[1730099299571,9.04661093,175.0,174.94,14.2902]
[1730099299749,9.04661093,174.99,174.94,29.05301093]
[1730099299948,9.04661093,174.98,174.94,20.0064]
[1730099301773,9.04661093,174.97,174.94,14.2902]
[1730099302269,9.04661093,174.96,174.91,14.2928]
[1730099302473,9.04661093,174.96,174.91,23.33941093]
[1730099302770,9.04661093,174.96,174.91,29.05661093]
[1730099303282,14.76181093,174.97,174.92,9.04661093]
[1730099303847,14.76181093,174.97,174.93,5.7165]
[1730099304380,23.776884,174.97,174.93,14.76311093]
[1730099304550,6.67029,175.02,174.94,9.04661093]
[1730099304750,9.04661093,174.99,174.94,9.04661093]
[1730099305583,14.76121093,174.99,174.93,9.04661093]
[1730099306452,14.76121093,174.99,174.93,14.13433274]
[1730099306453,19.84893274,174.99,174.93,14.13433274]
[1730099306771,14.13433274,174.98,174.94,5.7162]
[1730099308277,14.13433274,174.99,174.94,34.14113274]
[1730099309280,14.13433274,174.99,174.95,7.14673073]
[1730099309488,14.13433274,174.99,174.95,5.7158]
[1730099310080,14.13433274,174.98,174.95,5.7158]
[1730099310457,14.13433274,174.98,174.94,20.0068]
[1730099310701,14.13433274,174.98,174.95,1.43092751]
[1730099310882,14.13433274,174.98,174.94,20.0068]
[1730099311172,14.13433274,174.98,174.95,1.43093652]
[1730099311355,14.13433274,174.98,174.94,20.0068]
[1730099311558,14.13433274,174.98,174.95,1.43094105]
[1730099311870,14.13433274,174.98,174.94,20.0068]
[1730099312080,14.13433274,174.98,174.95,1.4309478]
[1730099312259,14.13433274,174.98,174.94,14.2906]
[1730099312460,14.13433274,174.99,174.95,1.43093992]
[1730099312779,14.13433274,174.99,174.94,14.2906]
[1730099312981,14.13433274,174.99,174.95,1.4309398]
[1730099313187,14.13433274,174.99,174.94,28.42493274]
[1730099313480,0.12549,175.02,174.94,28.42493274]
[1730099313481,14.13433274,175.02,174.97,14.13433274]
[1730099313668,14.13433274,175.01,174.96,14.13433274]
[1730099314263,14.13433274,175.01,174.96,34.13843274]
[1730099316382,14.13433274,175.01,174.97,1.43089026]
[1730099316567,14.13433274,175.01,174.96,34.13843274]
[1730099316878,14.13433274,175.01,174.97,7.14599026]
[1730099317080,14.13433274,175.01,174.97,5.7151]
[1730099317468,19.84823274,175.01,174.97,5.7151]
[1730099318387,14.13433274,175.01,174.97,5.7151]
[1730099320383,14.13433274,175.01,174.98,1.43089522]
[1730099320691,14.13433274,175.01,174.97,20.0032]
[1730099320889,14.13433274,175.01,174.98,1.43088847]
[1730099321065,14.13433274,175.01,174.97,20.0032]
[1730099321268,14.13433274,175.01,174.98,1.43088734]
[1730099321470,14.13433274,175.01,174.97,20.0032]
[1730099321772,14.13433274,175.01,174.98,7.14568622]
[1730099322089,14.13433274,175.01,174.99,1.43088633]
[1730099322290,14.13433274,175.01,174.98,5.7148]
[1730099322585,14.13433274,175.01,174.99,1.43082859]
[1730099322758,14.13433274,175.01,174.97,20.0033]
[1730099322957,14.13433274,175.01,174.98,1.43082082]
[1730099323173,14.13433274,175.02,174.99,1.43082082]
[1730099323382,14.13433274,175.02,174.97,34.13763274]
[1730099323592,14.13433274,175.03,174.98,15.56515964]
[1730099323770,14.13433274,175.04,174.99,1.4308269]
[1730099324083,14.13433274,175.04,175.0,1.4308269]
[1730099324290,14.13433274,175.03,174.98,14.13433274]
[1730099324485,14.13433274,175.03,174.99,1.43073846]
[1730099324793,14.13433274,175.03,175.0,7.14483846]
[1730099324974,14.13433274,175.03,175.01,1.43073846]
[1730099325176,14.13433274,175.03,175.0,5.7141]
[1730099325699,14.13433274,175.03,175.01,1.43072073]
[1730099325888,14.13433274,175.03,174.99,20.0006]
[1730099326191,14.13433274,175.04,175.0,1.43071465]
[1730099326376,14.13433274,175.04,175.01,1.43069331]
[1730099326580,14.13433274,175.04,174.99,34.13493274]
[1730099326878,14.13433274,175.04,175.0,1.43067462]
[1730099327070,14.13433274,175.04,175.01,7.14457462]
[1730099327395,14.13433274,175.04,175.01,5.7139]
[1730099328071,14.72627704,175.07,175.02,14.13433274]
[1730099328288,0.5919443,175.07,175.03,15.56484037]
[1730099328474,0.5919443,175.07,175.04,1.43050763]
[1730099328669,0.5919443,175.07,175.03,9.03531713]
[1730099329882,9.62726143,175.07,175.02,9.03531713]
[1730099330285,9.62726143,175.07,175.03,19.9965]
[1730099331299,0.5919443,175.07,175.03,19.9965]
[1730099332098,0.5919443,175.07,175.03,23.31851713]
[1730099332280,0.5919443,175.07,175.04,53.87991306]
[1730099332478,0.5919443,175.07,175.03,23.31851713]
[1730099333372,0.5919443,175.07,175.03,29.03181713]
[1730099339004,0.5919443,175.07,175.04,35.7128]
[1730099339794,0.5919443,175.07,175.06,32.00491713]
[1730099340010,0.5919443,175.07,175.06,62.00491713]
[1730099340372,0.5919443,175.07,175.06,52.9696]
[1730099340719,0.5919443,175.07,175.06,62.00491713]
[1730099341075,0.5919443,175.07,175.06,67.71721713]
[1730099342405,0.5919443,175.07,175.06,58.6819]
[1730099342609,0.5919443,175.07,175.06,67.71721713]
[1730099344312,0.5919443,175.07,175.06,58.6819]
[1730099344515,0.5919443,175.07,175.06,67.71721713]
[1730099344889,0.5919443,175.07,175.06,121.26736729]
[1730099345087,21.8959,175.22,175.07,0.12549]
[1730099345294,9.03531713,175.19,175.14,9.03531713]
[1730099345609,5.7068,175.23,175.17,9.03531713]
[1730099345814,9.03531713,175.22,175.17,9.03531713]
[1730099346014,9.03531713,175.21,175.16,9.03531713]
[1730099346318,9.03531713,175.21,175.16,14.74401713]
[1730099346890,9.03531713,175.21,175.16,29.01661713]
[1730099347700,32.81220113,175.2,175.13,16.0055]
[1730099347909,9.03531713,175.17,175.12,9.03531713]
[1730099348295,9.03531713,175.17,175.13,19.9851]
[1730099348606,9.03531713,175.17,175.14,30.0]
[1730099349196,9.03531713,175.17,175.13,19.9851]
[1730099349892,9.03531713,175.19,175.14,9.03531713]
[1730099350090,38.52010113,175.2,175.15,9.03531713]
[1730099350311,32.81220113,175.2,175.15,9.03531713]
[1730099350516,23.776884,175.2,175.16,9.03531713]
[1730099350894,38.52010113,175.2,175.15,9.03531713]
[1730099351104,9.03531713,175.19,175.14,9.03531713]
[1730099351407,38.52010113,175.2,175.15,9.03531713]
[1730099351921,0.5919443,175.24,175.15,9.03531713]
[1730099352219,9.03531713,175.2,175.16,19.9816]
[1730099352613,8.53531713,175.2,175.16,19.9816]
[1730099353324,5.95768,175.23,175.16,19.9816]
[1730099353325,49.484184,175.22,175.17,9.03531713]
[1730099353619,38.51950113,175.22,175.16,29.01691713]
[1730099354206,9.03531713,175.21,175.16,29.01691713]
[1730099354402,9.03531713,175.2,175.15,9.03531713]
[1730099354802,9.03531713,175.21,175.16,9.03531713]
[1730099355235,29.484184,175.22,175.16,9.03531713]
[1730099355522,9.03531713,175.2,175.16,5.709]
[1730099356007,29.484184,175.22,175.15,23.30831713]
[1730099356008,9.03531713,175.18,175.15,14.273]
[1730099356210,9.03531713,175.18,175.15,19.9823]
[1730099356525,9.03531713,175.19,175.15,19.9823]
[1730099356722,29.484184,175.22,175.15,19.9823]
[1730099356913,9.03531713,175.19,175.15,19.9823]
[1730099357115,29.484184,175.22,175.15,29.01761713]
[1730099357432,9.03531713,175.2,175.15,29.01761713]
[1730099357613,23.776884,175.22,175.17,5.7087]
[1730099357812,9.03531713,175.21,175.17,19.9805]
[1730099358299,9.03531713,175.22,175.17,29.01581713]
[1730099360299,23.776884,175.23,175.2,9.03531713]
[1730099360762,23.776884,175.23,175.19,9.03531713]
[1730099360934,0.5919443,175.24,175.21,9.03531713]
[1730099362228,0.5919443,175.24,175.21,14.74261713]
[1730099362524,0.5919443,175.24,175.23,9.03531713]
[1730099363216,0.5919443,175.24,175.22,9.03531713]
[1730099363820,0.5919443,175.24,175.21,19.9758]
[1730099366339,9.62726143,175.24,175.21,14.2685]
[1730099366540,9.62726143,175.24,175.15,22.0075]
[1730099366541,9.03531713,175.22,175.18,14.2707]
[1730099367721,9.03531713,175.23,175.18,29.01441713]
[1730099367926,15.33376143,175.24,175.18,29.01441713]
[1730099368223,0.5919443,175.24,175.18,29.01441713]
[1730099368433,0.5919443,175.24,175.19,9.03531713]
[1730099368622,0.5919443,175.24,175.21,9.03531713]
[1730099370041,9.62726143,175.24,175.19,9.03531713]
[1730099370540,9.62726143,175.24,175.18,23.30601713]
[1730099370719,9.03531713,175.22,175.18,14.2707]
[1730099371309,9.03531713,175.23,175.18,14.2707]
[1730099371912,9.03531713,175.21,175.18,19.9791]
[1730099373212,9.03531713,175.21,175.18,14.2707]
[1730099373741,9.03531713,175.22,175.18,14.2707]
[1730099374231,9.03531713,175.23,175.18,14.2707]
[1730099374435,9.03531713,175.23,175.18,19.9791]
[1730099374853,0.5919443,175.24,175.19,9.03531713]
[1730099375134,0.5919443,175.24,175.2,9.03531713]
[1730099375341,0.5919443,175.24,175.21,9.03531713]
[1730099375750,0.5919443,175.24,175.22,9.03531713]
[1730099376436,0.5919443,175.24,175.23,5.7067]
[1730099379037,0.5919443,175.24,175.22,14.2675]
[1730099379218,0.5919443,175.24,175.22,19.9746]
[1730099380421,0.5919443,175.24,175.2,9.03531713]
[1730099381542,0.5919443,175.24,175.21,19.9759]
[1730099382122,0.5919443,175.24,175.21,29.01121713]
[1730099382633,0.5919443,175.24,175.22,9.03531713]
[1730099383634,0.5919443,175.24,175.23,5.7067]
[1730099386321,0.5919443,175.24,175.23,14.74201713]
[1730099386532,1.58487632,175.42,175.23,14.74201713]
[1730099386533,5.7009,175.41,175.28,0.1]
[1730099386740,5.7009,175.41,175.33,9.03531713]
[1730099386921,5.7009,175.41,175.32,9.03531713]
[1730099386922,9.03531713,175.38,175.32,9.03531713]
[1730099387122,9.03531713,175.37,175.32,9.03531713]
[1730099387545,9.03531713,175.4,175.34,9.03531713]
[1730099387932,0.5919443,175.42,175.39,9.03531713]
[1730099388137,0.5919443,175.42,175.4,2.28424917]
[1730099388332,0.5919443,175.42,175.36,19.9588]
[1730099388640,0.5919443,175.42,175.38,9.03531713]
[1730099388837,9.62726143,175.42,175.36,19.9588]
[1730099389034,0.5919443,175.42,175.41,9.03531713]
[1730099389251,0.5919443,175.42,175.41,1.42740525]
[1730099389934,0.5919443,175.42,175.41,10.46272238]
[1730099390129,9.03531713,175.48,175.41,1.42740525]
[1730099390330,9.03531713,175.48,175.42,10.46272238]
[1730099390649,9.03531713,175.48,175.43,7.12760525]
[1730099390650,14.05400235,175.48,175.43,7.12760525]
[1730099390826,14.05400235,175.47,175.44,1.42740525]
[1730099391026,19.75210235,175.5,175.45,15.48093192]
[1730099391260,14.05400235,175.5,175.45,14.05400235]
[1730099391422,5.6973,175.52,175.45,14.05400235]
[1730099391627,14.05400235,175.5,175.45,14.05400235]
[1730099391825,14.05400235,175.49,175.43,14.05400235]
[1730099392023,20.0,175.54,175.42,19.952]
[1730099392234,20.0,175.54,175.43,1.42694468]
[1730099392235,14.05400235,175.48,175.43,1.42694468]
[1730099392527,14.05400235,175.48,175.44,1.42694468]
[1730099392727,0.12549,175.49,175.42,34.00600235]
[1730099392933,14.05400235,175.46,175.43,1.42694553]
[1730099393135,14.05400235,175.46,175.41,1.42694553]